[Event "125-Jahre Werder Bremen 2024"]
[Site "Bremen"]
[Date "2024.03.07"]
[Round "6.1"]
[White "Gumularz, Szymon"]
[Black "Aditya Mittal"]
[Result "1/2-1/2"]
[ECO "A20"]
[WhiteElo "2590"]
[BlackElo "2594"]
[Annotator "RC"]
[PlyCount "191"]
[EventDate "2024.02.26"]
[EventType "swiss"]
[EventCountry "GER"]
[SourceTitle "playchess.com"]
[Source "ChessBase"]
[SourceQuality "1"]
[TimeControl "40/6000+30:1800+30"]

1. c4 {[%emt 0:00:06]} e5 {[%emt 0:00:01]} 2. d3 {[%emt 0:00:12]} Nf6 {[%emt 0:00:11]} 3. Nf3 {[%emt 0:00:15]} Nc6 {[%emt 0:00:13]} 4. a3 {[%emt 0:00:33]} d5 {[%emt 0:04:25]} 5. cxd5 {[%emt 0:00:07]} Nxd5 {[%emt 0:00:05]} 6. Qc2 {[%emt 0:00:41]} Be7 {[%emt 0:04:58]} 7. e3 {[%emt 0:00:22]} a5 {[%emt 0:01:45]} 8. b3 {[%emt 0:00:07]} f5 {[%emt 0:06:54]} 9. Bb2 {[%emt 0:01:19]} Bf6 {[%emt 0:00:05]} 10. Nbd2 {[%emt 0:00:59]} O-O {[%emt 0:02:38]} 11. Be2 {[%emt 0:00:38]} Re8 {[%emt 0:02:39]} 12. O-O {[%emt 0:02:05]} Be6 {[%emt 0:03:53]} 13. Rfe1 {[%emt 0:01:24]} Nb6 {[%emt 0:04:00]} 14. e4 {[%emt 0:05:24]} f4 {[%emt 0:03:46]} 15. Rac1 {[%emt 0:04:47]} Qd7 {[%emt 0:03:04]} 16. Qb1 {[%emt 0:07:03]} Qf7 {[%emt 0:09:49]} 17. d4 {[%emt 0:13:00]} exd4 {[%emt 0:09:30]} 18. Bb5 {[%emt 0:00:28]} Rad8 {[%emt 0:11:12]} 19. Bxc6 {[%emt 0:06:59]} bxc6 {[%emt 0:00:02]} 20. Rxc6 {[%emt 0:02:39]} a4 {[%emt 0:09:58]} 21. e5 {[%emt 0:05:07]} Be7 {[%emt 0:00:36]} 22. Nxd4 {[%emt 0:02:07]} Bd5 {[%emt 0:06:08]} 23. Rxc7 {[%emt 0:00:27]} axb3 {[%emt 0:00:09]} 24. e6 {[%emt 0:02:28]} Qg6 {[%emt 0:00:27]} 25. Qxg6 {[%emt 0:02:09]} hxg6 {[%emt 0:00:01]} 26. N4xb3 {[%emt 0:00:28]} Bf8 {[%emt 0:12:13]} 27. h4 {[%emt 0:26:14]} Na8 {[%emt 0:03:27]} 28. Ra7 {[%emt 0:04:17]} Bxe6 {[%emt 0:00:48]} 29. Nd4 {[%emt 0:00:13]} Bd5 {[%emt 0:05:37]} 30. Rxe8 {[%emt 0:01:12]} Rxe8 {[%emt 0:00:01]} 31. N4f3 {[%emt 0:00:23]} Nb6 {[%emt 0:02:12]} 32. Bd4 {[%emt 0:01:12]} Nc8 {[%emt 0:00:01]} 33. Ra5 {[%emt 0:00:51]} Ne7 {[%emt 0:00:10]} 34. Bc5 {[%emt 0:08:24]} Rd8 {[%emt 0:00:40]} 35. Ra4 {[%emt 0:00:16]} Rc8 {[%emt 0:02:47]} 36. Bd6 {[%emt 0:00:16]} Rc1+ {[%emt 0:02:38]} 37. Kh2 {[%emt 0:00:07]} Rd1 {[%emt 0:00:33]} 38. Bxf4 {[%emt 0:03:49]} Nf5 {[%emt 0:00:01]} 39. Ra5 {[%emt 0:00:33]} Bb7 {[%emt 0:01:22]} 40. Ra7 {[%emt 0:08:13]} Bd5 {[%emt 0:00:49]} 41. Ra6 {[%emt 0:07:37]} Be7 {[%emt 0:03:03]} 42. Ra5 {[%emt 0:02:54]} Bb7 {[%emt 0:10:56]} 43. h5 {[%emt 0:01:32]} Kh7 {[%emt 0:05:12]} 44. Ra7 {[%emt 0:08:01]} Bxf3 {[%emt 0:08:14]} 45. hxg6+ {[%emt 0:00:16]} Kxg6 {[%emt 0:00:01]} 46. Nxf3 {[%emt 0:00:08]} Bf6 {[%emt 0:01:26]} 47. Ra6 {[%emt 0:02:12]} Rf1 {[%emt 0:00:38]} 48. Ne5+ {[%emt 0:03:22]} Kh7 {[%emt 0:00:01]} 49. Ng4 {[%emt 0:00:44]} Bd4 {[%emt 0:00:06]} 50. g3 {[%emt 0:00:45]} Ra1 {[%emt 0:00:44]} 51. Kg2 {[%emt 0:00:15]} Ra2 {[%emt 0:00:23]} 52. a4 {[%emt 0:02:28]} Bc3 {[%emt 0:00:32]} 53. Ra8 {[%emt 0:03:14]} Be1 {[%emt 0:01:06]} 54. Kf1 {[%emt 0:01:14]} Bb4 {[%emt 0:00:15]} 55. Ne3 {[%emt 0:00:23]} Nd4 {[%emt 0:00:32]} 56. Nd5 {[%emt 0:00:04]} Bc5 {[%emt 0:00:56]} 57. Be3 {[%emt 0:00:59]} Nb3 {[%emt 0:00:05]} 58. Kg2 {[%emt 0:01:47]} Bxe3 {[%emt 0:01:56]} 59. Nxe3 {[%emt 0:00:02]} Nd4 {[%emt 0:00:41]} 60. Nc4 {[%emt 0:01:29]} Nb3 {[%emt 0:00:36]} 61. Ra7 {[%emt 0:00:47]} Nc5 {[%emt 0:00:36]} 62. a5 {[%emt 0:00:42]} Nb3 {[%emt 0:01:53]} 63. Rb7 {[%emt 0:00:25]} Nd4 {[%emt 0:00:01]} 64. Rd7 {[%emt 0:00:40]} Nb3 {[%emt 0:00:13]} 65. Rb7 {[%emt 0:02:07]} Nd4 {[%emt 0:00:01]} 66. Rd7 {[%emt 0:00:35]} Nb3 {[%emt 0:00:01]} 67. Nd6 {[%emt 0:00:10]} Rd2 {[%emt 0:02:41]} 68. a6 {[%emt 0:00:17]} Nc5 {[%emt 0:00:01]} 69. a7 {[%emt 0:00:23]} Nxd7 {[%emt 0:00:03]} 70. a8=Q {[%emt 0:00:11]} Rxd6 {[%emt 0:00:02]} 71. Qe4+ {[%emt 0:00:34]} Kg8 {[%emt 0:00:39]} 72. Qe7 {[%emt 0:00:18]} Rd4 {[%emt 0:00:15]} 73. Qd8+ {[%emt 0:00:07]} Kf7 {[%emt 0:00:37]} 74. f4 {[%emt 0:00:20]} Rd5 {[%emt 0:00:37]} 75. Qc7 {[%emt 0:00:14]} Kg6 {[%emt 0:02:22]} 76. g4 {[%emt 0:00:17]} Nf6 {[%emt 0:00:13]} 77. g5 {[%emt 0:00:36]} Nh5 {[%emt 0:00:47]} 78. Kf3 {[%emt 0:01:14]} Nxf4 {[%emt 0:00:14]} 79. Kxf4 {[%emt 0:01:08]} Rf5+ {[%emt 0:00:00]} 80. Ke4 {[%emt 0:00:25]} Rxg5 {[%emt 0:00:01]} 81. Qd7 {[%emt 0:00:58]} Kh7 {[%emt 0:00:37]} 82. Qf7 {[%emt 0:00:31]} Rg4+ {[%emt 0:01:21]} 83. Kf5 {[%emt 0:00:26]} Rh4 {[%emt 0:00:16]} 84. Qg6+ {[%emt 0:00:55]} Kh8 {[%emt 0:00:06]} 85. Qe8+ {[%emt 0:00:24]} Kh7 {[%emt 0:00:00]} 86. Kg5 {[%emt 0:00:28]} Rh6 {[%emt 0:00:05]} 87. Qe4+ {[%emt 0:00:17]} Kh8 {[%emt 0:00:08]} 88. Qa8+ {[%emt 0:00:41]} Kh7 {[%emt 0:00:03]} 89. Kf5 {[%emt 0:00:09]} Rf6+ {[%emt 0:00:04]} 90. Ke5 {[%emt 0:00:02]} Rh6 {[%emt 0:00:04]} 91. Kf5 {[%emt 0:01:04]} Rf6+ {[%emt 0:00:02]} 92. Kg5 {[%emt 0:00:05]} Rg6+ {[%emt 0:00:04]} 93. Kf4 {[%emt 0:00:03]} Rf6+ {[%emt 0:00:07]} 94. Ke3 {[%emt 0:00:04]} Re6+ {[%emt 0:00:05]} 95. Kd4 {[%emt 0:00:03]} Rf6 {[%emt 0:00:03]} 96. Ke4 {[%emt 0:03:30]} 1/2-1/2

[Event "125-Jahre Werder Bremen 2024"]
[Site "Bremen"]
[Date "2024.03.07"]
[Round "6.2"]
[White "Cheng, Bobby"]
[Black "Teclaf, Pawel"]
[Result "0-1"]
[ECO "D26"]
[WhiteElo "2584"]
[BlackElo "2556"]
[Annotator "TA"]
[PlyCount "50"]
[EventDate "2024.02.26"]
[EventType "swiss"]
[EventCountry "GER"]
[SourceTitle "playchess.com"]
[Source "ChessBase"]
[SourceQuality "1"]
[TimeControl "40/6000+30:1800+30"]

{[%evp 26,50,41,41,56,56,85,77,237,-187,-205,-309,-332,-359,-357,-579,-580,-562,-546,-771,-739,-1698,-1725,-29992,-29993,-29996,-29994]} 1. d4 {[%emt 0:00:03]} Nf6 {[%emt 0:00:04]} 2. c4 {[%emt 0:00:04]} e6 {[%emt 0:00:03]} 3. Nc3 {[%emt 0:00:37]} Bb4 {[%emt 0:00:11]} 4. e3 {[%emt 0:00:21]} O-O {[%emt 0:02:55]} 5. Bd3 {[%emt 0:00:19]} d5 {[%emt 0:03:01]} 6. Nf3 {[%emt 0:00:15]} dxc4 {[%emt 0:06:10]} 7. Bxc4 {[%emt 0:00:05]} c5 {[%emt 0:00:14]} 8. O-O {[%emt 0:00:18]} cxd4 {[%emt 0:11:07]} 9. exd4 {[%emt 0:00:47]} Nc6 {[%emt 0:04:07]} 10. a3 {[%emt 0:01:52]} Be7 {[%emt 0:02:49]} 11. Qd3 {[%emt 0:11:05]} b6 {[%emt 0:03:38]} 12. Bf4 {[%emt 0:04:33]} Bb7 {[%emt 0:03:41]} 13. Ba2 {[%emt 0:02:25]} Rc8 {[%emt 0:21:16]} 14. Rfe1 {[%emt 0:01:41]} Bd6 {[%emt 0:14:04]} 15. Bg5 {[%emt 0:01:52] Threatens to win with Bb1.} h6 {[%emt 0:01:08]} 16. Bh4 {[%emt 0:02:10] aiming for Bb1.} g5 $2 {[%emt 0:03:40] [#]} (16... Ne7 $16 {was necessary.}) 17. Nxg5 $4 {[%emt 1:20:33][%mdl 8192]} hxg5 $19 {[%emt 0:00:25]} 18. Bxg5 {[%emt 0:00:00] [#]} (18. Bxe6 $142 fxe6 19. Qg6+ Kh8 20. Bxg5 Bxh2+ (20... Nxd4 21. Qh6+ Kg8 22. Qg6+ Kh8 23. Re3 $11) 21. Kxh2 Qc7+ 22. Kg1) 18... Bxh2+ $1 {[%emt 0:01:57][%mdl 512]} 19. Kh1 {[%emt 0:00:00][%cal Od3h3]} (19. Kxh2 Ng4+) 19... Kg7 {[%emt 0:03:22] ...Rh8 is the strong threat.} (19... Qxd4 $2 {too greedy.} 20. Qxd4 Nxd4 21. Bxf6 $18) 20. Re3 $2 {[%emt 0:00:00]} (20. Bxf6+ Qxf6 21. Kxh2 Qxf2 22. Qg3+ Qxg3+ 23. Kxg3) 20... Rh8 {[%emt 0:01:26]} 21. Rh3 {[%emt 0:00:00] Prevents Ng4} Bb8 {[%emt 0:00:24]} 22. Bh4 {[%emt 0:00:00]} Qxd4 {[%emt 0:04:10]} 23. Qb5 {[%emt 0:00:00]} Ne5 {[%emt 0:04:36]} 24. Rd1 {[%emt 0:00:00]} Rxc3 {[%emt 0:02:05]} 25. Rg3+ {[%emt 0:00:00]} Nfg4 {[%emt 0:00:45] Weighted Error Value: White=1.64/Black=0.16 (very precise) .  Missed win:     	White=1     	---        Mistake:       	White=2     	Black=1      Inaccurate:     	White=2     	Black=1      OK:         	White=2     	Black=4      Best:        	White=1     	---        Brilliant:      	---       	Black=1} 0-1

[Event "125-Jahre Werder Bremen 2024"]
[Site "Bremen"]
[Date "2024.03.07"]
[Round "6.3"]
[White "Efimenko, Zahar"]
[Black "Gloeckler, Christian"]
[Result "1/2-1/2"]
[ECO "A43"]
[WhiteElo "2568"]
[BlackElo "2356"]
[Annotator "TA"]
[PlyCount "49"]
[EventDate "2024.02.26"]
[EventType "swiss"]
[EventCountry "GER"]
[SourceTitle "playchess.com"]
[Source "ChessBase"]
[SourceQuality "1"]
[TimeControl "40/6000+30:1800+30"]

{[%evp 14,49,-3,-10,0,-50,-56,-52,-44,-69,-61,-79,-67,-63,-59,-66,-47,-77,-56,-53,-54,-53,-45,-49,-19,-22,-23,-18,-21,-25,-31,-37,-36,-41,-40,-41,-40,-101]} 1. Nf3 {[%emt 0:00:49]} Nf6 {[%emt 0:00:09]} 2. g3 {[%emt 0:00:23]} c5 {[%emt 0:00:17]} 3. Bg2 {[%emt 0:02:18]} Nc6 {[%emt 0:00:17]} 4. d4 {[%emt 0:05:23]} cxd4 {[%emt 0:00:54]} 5. Nxd4 {[%emt 0:00:05]} e5 {[%emt 0:00:09]} 6. Nb3 {[%emt 0:05:13]} d5 {[%emt 0:06:58]} 7. Bg5 {[%emt 0:01:22]} Be6 {[%emt 0:01:19]} 8. O-O {[%emt 0:02:11]} Be7 {[%emt 0:08:03]} 9. N1d2 {[%emt 0:09:49]} ({White should try} 9. Nc3 $11) 9... Qb6 {[%emt 0:13:51]} 10. e4 {[%emt 0:15:11] [#] And now Bxf6 would win.} d4 {[%emt 0:08:06]} 11. Rb1 {[%emt 0:00:24]} O-O {[%emt 0:13:47]} 12. a3 {[%emt 0:06:26]} Nd7 {[%emt 0:04:52]} 13. Bxe7 {[%emt 0:02:13]} Nxe7 {[%emt 0:00:03]} 14. Nc1 {[%emt 0:03:54]} Nc5 {[%emt 0:02:28]} 15. Bf3 {[%emt 0:01:31]} Ng6 {[%emt 0:09:29]} 16. Bg4 {[%emt 0:02:03]} Bxg4 {[%emt 0:01:58]} 17. Qxg4 {[%emt 0:00:10]} Rac8 {[%emt 0:00:28]} 18. Nd3 {[%emt 0:03:29]} Nxd3 {[%emt 0:01:12]} 19. cxd3 {[%emt 0:00:24]} Qa6 {[%emt 0:01:16]} 20. Qf3 {[%emt 0:17:13]} Rc6 {[%emt 0:05:19]} 21. Rfc1 {[%emt 0:01:09]} Rfc8 {[%emt 0:02:38]} 22. Rc4 {[%emt 0:00:40] Black is slightly better.} Rxc4 {[%emt 0:05:08]} 23. Nxc4 {[%emt 0:00:06]} b5 {[%emt 0:00:17]} 24. Nd2 {[%emt 0:00:44]} Qa4 {[%emt 0:01:43] White must now prevent ...Qc2.} 25. Qd1 {[%emt 0:05:24] Weighted Error Value: White=0.10 (very precise) /Black=0.05 (flawless) .  Mistake:       	White=2     	---        Inaccurate:     	White=1     	Black=1      OK:         	White=4     	Black=7      Best:        	---       	Black=1} (25. Kf1 $1 $15) 1/2-1/2

[Event "125-Jahre Werder Bremen 2024"]
[Site "Bremen"]
[Date "2024.03.07"]
[Round "6.4"]
[White "Breutigam, Martin"]
[Black "Plat, Vojtech"]
[Result "0-1"]
[ECO "A41"]
[WhiteElo "2359"]
[BlackElo "2528"]
[Annotator "TA"]
[PlyCount "108"]
[EventDate "2024.02.26"]
[EventType "swiss"]
[EventCountry "GER"]
[SourceTitle "playchess.com"]
[Source "ChessBase"]
[SourceQuality "1"]
[TimeControl "40/6000+30:1800+30"]

{[%evp 9,108,14,14,4,39,41,47,46,58,23,34,36,30,24,29,29,28,9,13,10,31,37,32,25,28,7,9,0,0,0,0,-7,7,0,0,0,0,-26,0,0,30,-21,-5,-69,-56,-60,-68,-68,-79,-91,-75,-139,-148,-132,-104,-106,-75,-111,-42,-35,-44,-40,-69,-112,-101,-93,-33,-116,-82,-427,-438,-416,-368,-412,-408,-447,-464,-458,-457,-516,-402,-599,-574,-482,-472,-439,-420,-453,-448,-445,-337,-552,-545,-521,-471,-607,-587,-562,-506,-533,-506]} 1. d4 {[%emt 0:00:04]} d6 {[%emt 0:00:21]} 2. c4 {[%emt 0:01:07]} e5 {[%emt 0:00:17]} 3. d5 {[%emt 0:00:10]} Be7 {[%emt 0:00:05]} 4. Nc3 {[%emt 0:00:30]} Bg5 {[%emt 0:00:45]} 5. e3 {[%emt 0:01:17]} f5 {[%emt 0:01:03]} 6. Nf3 {[%emt 0:01:38]} Bf6 {[%emt 0:00:18]} 7. e4 {[%emt 0:00:32]} Ne7 {[%emt 0:00:05]} 8. exf5 {[%emt 0:01:14] Weiß steht etwas besser.} Bxf5 {[%emt 0:00:51]} 9. Bd3 {[%emt 0:01:13]} O-O {[%emt 0:00:43]} 10. O-O {[%emt 0:02:19]} Nd7 {[%emt 0:00:33]} 11. Be3 {[%emt 0:01:16]} Qe8 {[%emt 0:04:39]} 12. Ne4 {[%emt 0:03:13]} Bg6 {[%emt 0:02:53]} 13. Nfg5 {[%emt 0:08:40]} Bxg5 {[%emt 0:00:50]} 14. Nxg5 {[%emt 0:01:20] Ne6 wäre nun fies.} Bxd3 {[%emt 0:02:24]} 15. Qxd3 {[%emt 0:00:29]} Qg6 {[%emt 0:08:13]} 16. Qxg6 {[%emt 0:06:54]} Nxg6 {[%emt 0:02:54]} 17. g3 {[%emt 0:05:50]} Nf6 {[%emt 0:01:08]} 18. f3 {[%emt 0:00:21]} h6 {[%emt 0:00:16]} 19. Ne4 {[%emt 0:00:38]} Ne7 {[%emt 0:00:10]} 20. Kg2 {[%emt 0:08:45]} a6 {[%emt 0:01:57]} 21. a4 {[%emt 0:02:51]} a5 {[%emt 0:01:02]} 22. Rad1 {[%emt 0:06:39]} b6 {[%emt 0:00:11]} 23. Bg1 {[%emt 0:01:09]} Kh7 {[%emt 0:00:12]} 24. Nc3 {[%emt 0:00:47]} Rf7 {[%emt 0:01:14]} 25. b3 {[%emt 0:07:27]} (25. Nb5 $142) 25... g5 $11 {[%emt 0:01:11]} 26. f4 {[%emt 0:02:23]} (26. Nb5 $11) 26... exf4 $1 $15 {[%emt 0:03:06]} ({Viel schlechter ist} 26... gxf4 27. gxf4 Nf5 28. fxe5 $11) 27. gxf4 {[%emt 0:00:19]} g4 {[%emt 0:00:03]} 28. Nb5 {[%emt 0:04:49]} Nf5 {[%emt 0:02:44]} 29. Nd4 {[%emt 0:03:53]} Nh5 {[%emt 0:00:53]} 30. Ne6 {[%emt 0:13:58] [#]} (30. Nxf5 $142 Rxf5 31. Be3) 30... Nh4+ $1 $17 {[%emt 0:01:04] Ein dynamisches Springerpaar.} 31. Kf2 {[%emt 0:00:05]} Rg8 {[%emt 0:00:20]} (31... Nxf4 $2 {geht unter.} 32. Kg3 Nf3 33. Nxf4 $18) 32. Ke3 {[%emt 0:02:50]} g3 {[%emt 0:00:43] Pariert Bf2.} 33. Ke4 {[%emt 0:01:51]} gxh2 {[%emt 0:05:04]} (33... g2 $17 34. Rf2 Ng7 (34... Nf6+ $2 35. Kd3 $19)) 34. Bxh2 $15 {[%emt 0:00:42]} Rg2 {[%emt 0:00:19]} 35. Rh1 {[%emt 0:00:40]} Nf5 {[%emt 0:11:42]} (35... Ng7 {sieht schärfer aus.} 36. Bg1 Rg4 37. Be3 Nxe6 38. dxe6 Rf6) 36. Kd3 {[%emt 0:03:27] Wehrt Re2 ab} Rg4 {[%emt 0:00:20] Schwarz steht aktiver.} 37. Rd2 {[%emt 0:04:47] [#]} Nhg7 {[%emt 0:02:37]} ({Günstiger ist} 37... Rh4 $1 $17 {[%cal Rh4h3] Und jetzt ...Rh3+ wäre schön.} 38. Re1 Nhg7) 38. Re1 {[%emt 0:02:35]} (38. Rg1 $1 $15 Rh4 39. Kc3) 38... Rh4 {[%emt 0:00:20]} 39. Re4 $2 {[%emt 0:07:23][%mdl 8192] Davon erholt Weiß sich nicht mehr.} (39. Bg1 $17) 39... Rh3+ $19 {[%emt 0:00:31]} 40. Kc2 {[%emt 0:01:32]} Ne3+ {[%emt 0:00:20]} 41. Rxe3 {[%emt 0:04:55]} Rxe3 {[%emt 0:00:10]} 42. Nd4 {[%emt 0:00:28]} Nf5 {[%emt 0:00:50]} 43. Ne6 {[%emt 0:00:15]} Re1 {[%emt 0:00:02] Wehrt Bg1 ab} 44. Kb2 {[%emt 0:00:23]} c5 {[%emt 0:02:06]} 45. Ka3 {[%emt 0:00:59]} (45. Rg2 {ist eine bessere Verteidigung.}) 45... Rf6 {[%emt 0:02:28]} 46. Rg2 {[%emt 0:00:19]} Rfxe6 {[%emt 0:00:11]} 47. dxe6 {[%emt 0:00:06]} Rxe6 {[%emt 0:00:04][%mdl 4096] Endspiel. KRB-KRN} 48. Rd2 {[%emt 0:01:02]} Re1 {[%emt 0:00:15]} 49. Rg2 {[%emt 0:00:39]} Re4 {[%emt 0:00:28]} 50. Rd2 $2 {[%emt 0:00:52]} (50. Kb2) 50... Kg6 {[%emt 0:00:06] Schwarz steht klar auf Gewinn.} 51. Rg2+ {[%emt 0:00:18]} Kf7 {[%emt 0:00:01]} 52. Rd2 {[%emt 0:00:29]} Re1 {[%emt 0:00:20]} 53. Rg2 {[%emt 0:00:32]} Rf1 {[%emt 0:00:06]} 54. Re2 {[%emt 0:00:17]} Rf3 {[%emt 0:00:06] Gewichteter Fehlerwert: Weiß=0.39/Schwarz=0.14 (sehr präzise) .  Verlustzug:     	Weiß=1     	---        Fehler:       	Weiß=6     	Schwarz=2     Ungenau:       	Weiß=4     	Schwarz=3     OK:         	Weiß=15    	Schwarz=20    Bester:       	Weiß=3     	Schwarz=3     Stark:        	---       	Schwarz=1} 0-1

[Event "125-Jahre Werder Bremen 2024"]
[Site "Bremen"]
[Date "2024.03.07"]
[Round "6.5"]
[White "Kopylov, Daniel"]
[Black "Wachinger, Nikolas"]
[Result "1-0"]
[ECO "D38"]
[WhiteElo "2346"]
[BlackElo "2442"]
[Annotator "TA"]
[PlyCount "125"]
[EventDate "2024.02.26"]
[EventType "swiss"]
[EventCountry "GER"]
[SourceTitle "playchess.com"]
[Source "ChessBase"]
[SourceQuality "1"]
[TimeControl "40/6000+30:1800+30"]

{[%evp 30,125,0,10,7,0,0,0,0,0,0,0,6,10,121,118,174,168,314,113,115,120,118,116,119,121,117,110,114,112,145,101,94,91,97,87,87,80,54,27,17,26,16,20,24,16,23,32,29,9,14,8,89,33,24,8,8,8,8,8,8,8,14,14,14,14,216,14,32,32,32,8,860,1028,1382,833,992,472,29968,29969,29970,29972,29972,29972,29972,29974,29974,29975,29975,29975,29978,29979,29979,29980,29981,29982,29982,29983]} 1. d4 {[%emt 0:00:09]} Nf6 {[%emt 0:01:18]} 2. Nf3 {[%emt 0:00:15]} d5 {[%emt 0:02:18]} 3. c4 {[%emt 0:00:19]} e6 {[%emt 0:00:17]} 4. Nc3 {[%emt 0:00:12]} Bb4 {[%emt 0:00:41]} 5. Bg5 {[%emt 0:00:21]} h6 {[%emt 0:00:47]} 6. Bxf6 {[%emt 0:00:21]} Qxf6 {[%emt 0:00:05]} 7. e3 {[%emt 0:00:21]} O-O {[%emt 0:00:14]} 8. Rc1 {[%emt 0:00:17]} dxc4 {[%emt 0:00:56]} 9. Bxc4 {[%emt 0:00:11]} c5 {[%emt 0:00:07]} 10. O-O {[%emt 0:00:12]} cxd4 {[%emt 0:00:11] D38: Damengambit (Ragosin-Verteidigung).} 11. Ne4 {[%emt 0:00:21]} Qe7 {[%emt 0:00:23]} 12. a3 {[%emt 0:00:16]} Ba5 {[%emt 0:01:17]} 13. Qxd4 {[%emt 0:00:51]} Rd8 {[%emt 0:01:17]} 14. Qe5 {[%emt 0:00:30]} Bb6 {[%emt 0:07:13]} 15. Rfd1 {[%emt 0:00:29]} Nc6 {[%emt 0:32:21]} 16. Rxd8+ {[%emt 0:14:02]} Bxd8 {[%emt 0:06:10]} 17. Qh5 {[%emt 0:01:04]} Bd7 $146 {[%emt 0:09:34]} ({Predecessor:} 17... Na5 18. Bd3 Bd7 19. b4 Nc6 20. g4 Be8 21. g5 f5 22. gxf6 Bxh5 23. fxe7 Bxe7 {½-½ Sarana,A (2468)-Karavade,E (2418) Moscow Aeroflot op-A 16th 2017 (7)}) 18. g4 {[%emt 0:05:37]} Rc8 {[%emt 0:12:48]} 19. Rd1 {[%emt 0:06:14]} Na5 {[%emt 0:02:21]} 20. Bb5 {[%emt 0:27:28]} Bxb5 {[%emt 0:09:39]} 21. Qxb5 {[%emt 0:00:10]} a6 {[%emt 0:00:11]} (21... Bc7 $11) 22. Qh5 $1 $16 {[%emt 0:11:51]} Nb3 {[%emt 0:11:01]} (22... Bb6 $16 {ist wohl besser.}) 23. g5 $18 {[%emt 0:10:06]} Rc4 {[%emt 0:05:23]} (23... Rc1 $142 24. Rxc1 Nxc1 25. gxh6 g6) 24. Nd6 $2 {[%emt 0:02:39]} (24. gxh6 $1 $18 {ist der präzise Gewinnweg.} Rxe4 25. h7+ Kh8 26. Rxd8+ (26. Ne5 $2 Rxe5 27. Qxe5 Bc7 $19) 26... Qxd8 27. Ng5 (27. Qxf7 $2 Rg4+ 28. Kf1 Qd1+ 29. Ne1 Nd2#) 27... Rg4+ 28. Qxg4) 24... Rc1 $16 {[%emt 0:00:17]} 25. Rxc1 {[%emt 0:01:46]} Nxc1 {[%emt 0:00:02]} 26. gxh6 {[%emt 0:00:59]} (26. Ne4 Qf8 $14) 26... gxh6 {[%emt 0:04:44] [#]} (26... Qxd6 $2 27. Ne5 $18) 27. Ne5 $1 {[%emt 0:01:51]} Qg5+ {[%emt 0:01:41]} 28. Qxg5+ {[%emt 0:00:56]} hxg5 {[%emt 0:00:04]} 29. Nxb7 {[%emt 0:03:30]} (29. Nexf7 Bc7 $11) 29... Bc7 {[%emt 0:00:38]} 30. Nc4 {[%emt 0:01:42]} Nb3 {[%emt 0:00:02]} 31. Nbd6 {[%emt 0:05:32]} f5 {[%emt 0:00:50]} 32. e4 {[%emt 0:02:01]} Nd4 {[%emt 0:00:02]} 33. exf5 {[%emt 0:04:55]} exf5 {[%emt 0:00:09]} 34. h3 {[%emt 0:00:07]} Kf8 {[%emt 0:01:14]} 35. b4 {[%emt 0:00:34]} Ke7 {[%emt 0:00:28]} 36. Nb7 {[%emt 0:00:43]} Nb3 {[%emt 0:00:47]} 37. Nb2 {[%emt 0:04:33]} Ke6 {[%emt 0:00:46]} 38. Nd3 {[%emt 0:01:01]} Kd5 {[%emt 0:00:29]} 39. Kg2 {[%emt 0:00:11]} Bb6 {[%emt 0:00:33]} 40. f4 {[%emt 0:03:10]} Be3 {[%emt 0:00:19]} (40... gxf4 $1 $11 41. Kf3 Bc7) 41. fxg5 {[%emt 0:07:39]} (41. Nbc5 $16 Nd4 (41... Nxc5 42. bxc5 gxf4 43. Kf3 $16) (41... Bxc5 $2 42. Nxc5 Nd4 43. fxg5 $18) 42. fxg5 (42. Nxa6 Kc4 $16) 42... Bxg5 43. Nxa6) 41... Bxg5 $14 {[%emt 0:00:34]} 42. Nbc5 {[%emt 0:04:15]} Nxc5 {[%emt 0:13:58]} 43. bxc5 {[%emt 0:00:19]} a5 {[%emt 0:04:39]} 44. Kg3 {[%emt 0:09:50]} a4 {[%emt 0:00:31]} 45. h4 {[%emt 0:01:58]} Bh6 {[%emt 0:00:33]} 46. Kf3 {[%emt 0:01:43]} Kc6 {[%emt 0:00:51]} 47. h5 {[%emt 0:01:26]} Kd5 $2 {[%emt 0:00:49] [#]} (47... Bg5 $11 {und Schwarz muss sich keine Sorgen machen.}) 48. Ke2 $2 {[%emt 0:01:02]} (48. Nb2 $1 $18) 48... Kc6 {[%emt 0:00:20]} 49. Kd1 {[%emt 0:00:33]} Kd5 {[%emt 0:00:32]} 50. Kc2 {[%emt 0:00:15]} Bg7 $2 {[%emt 0:02:35][%mdl 8192]} (50... f4 $11) 51. Nf4+ $18 {[%emt 0:02:32]} Kc6 {[%emt 0:00:07]} 52. Kd3 {[%emt 0:05:17]} Bh6 {[%emt 0:10:22]} 53. Ne6 {[%emt 0:00:11]} Kd5 {[%emt 0:00:53]} (53... f4 $18 54. Kc4 Kb7) 54. Nd4 {[%emt 0:00:15]} Kxc5 {[%emt 0:00:34]} 55. Nxf5 {[%emt 0:00:06]} Bc1 {[%emt 0:00:20]} 56. h6 {[%emt 0:01:04]} Kd5 {[%emt 0:00:27]} 57. h7 {[%emt 0:01:05]} Bb2 {[%emt 0:00:02]} 58. Ne7+ {[%emt 0:00:04]} Ke6 {[%emt 0:01:00]} 59. Ng6 {[%emt 0:00:06]} Kf7 {[%emt 0:00:39]} 60. h8=Q {[%emt 0:00:29]} ({Schwächer ist} 60. h8=R Kxg6 61. Rh3 Bxa3 $11) 60... Bxh8 {[%emt 0:00:31]} 61. Nxh8+ {[%emt 0:00:03]} Kg7 {[%emt 0:00:14]} 62. Kc4 {[%emt 0:00:13]} Kxh8 {[%emt 0:00:13]} 63. Kb4 {[%emt 0:00:11]} 1-0